[Event "*** Titled Tuesday Blitz"]
[Site "Chess.com"]
[Date "2020.05.12"]
[Round "4"]
[White "Alexander_Moskalenko"]
[Black "tacticthunder"]
[Result "1-0"]
[WhiteElo "2821"]
[BlackElo "2620"]
[TimeControl "180+1"]
[EndTime "10:40:18 PDT"]
[Termination "Alexander_Moskalenko won by resignation"]

1. Nf3 {[%clk 0:02:42.7]} 1... Nf6 {[%clk 0:02:59.2]} 2. g3 {[%clk 0:02:34.9]}
2... d5 {[%clk 0:02:57.8]} 3. Bg2 {[%clk 0:02:29.7]} 3... c6 {[%clk 0:02:56.9]}
4. d4 {[%clk 0:02:28.9]} 4... Bf5 {[%clk 0:02:50.7]} 5. O-O {[%clk 0:02:28.6]}
5... e6 {[%clk 0:02:50.5]} 6. Nh4 {[%clk 0:02:26.8]} 6... Bg4 {[%clk 0:02:49.8]}
7. h3 {[%clk 0:02:27.1]} 7... Bh5 {[%clk 0:02:50]} 8. c3 {[%clk 0:02:25.1]} 8...
Nbd7 {[%clk 0:02:49.2]} 9. Nd2 {[%clk 0:02:23.4]} 9... Be7 {[%clk 0:02:49.2]}
10. Re1 {[%clk 0:02:20.7]} 10... O-O {[%clk 0:02:47.9]} 11. Qb3 {[%clk
0:02:20.4]} 11... Qc8 {[%clk 0:02:15.2]} 12. g4 {[%clk 0:02:13.1]} 12... Bg6
{[%clk 0:02:15.2]} 13. Nxg6 {[%clk 0:02:13.2]} 13... hxg6 {[%clk 0:02:15.6]} 14.
e4 {[%clk 0:02:14.1]} 14... dxe4 {[%clk 0:02:14.9]} 15. Nxe4 {[%clk 0:02:15]}
15... Nxe4 {[%clk 0:02:14.4]} 16. Bxe4 {[%clk 0:02:10.8]} 16... Nf6 {[%clk
0:02:02.1]} 17. Bf3 {[%clk 0:02:07.7]} 17... b5 {[%clk 0:01:55]} 18. h4 {[%clk
0:01:37.9]} 18... Bd6 {[%clk 0:01:45.8]} 19. h5 {[%clk 0:01:32]} 19... gxh5
{[%clk 0:01:44]} 20. gxh5 {[%clk 0:01:32.9]} 20... Re8 {[%clk 0:01:35.7]} 21.
Qc2 {[%clk 0:01:14.9]} 21... e5 {[%clk 0:01:25.8]} 22. Bg5 {[%clk 0:01:11.7]}
22... e4 {[%clk 0:01:05.3]} 23. Bg2 {[%clk 0:01:05]} 23... Nxh5 {[%clk
0:00:43.1]} 24. Rxe4 {[%clk 0:01:04.1]} 24... Qd7 {[%clk 0:00:20.5]} 25. Rae1
{[%clk 0:01:01.1]} 25... Rf8 {[%clk 0:00:20.7]} 26. Qd1 {[%clk 0:00:53.9]} 26...
g6 {[%clk 0:00:20.4]} 27. Qf3 {[%clk 0:00:53.6]} 27... c5 {[%clk 0:00:17.8]} 28.
Rh4 {[%clk 0:00:42.5]} 28... cxd4 {[%clk 0:00:15]} 29. Rxh5 {[%clk 0:00:42.1]}
29... gxh5 {[%clk 0:00:14.9]} 30. Qxh5 {[%clk 0:00:42.2]} 30... Rae8 {[%clk
0:00:10.9]} 31. Rxe8 {[%clk 0:00:34]} 31... Rxe8 {[%clk 0:00:11.8]} 32. Bf6
{[%clk 0:00:34.3]} 32... Re1+ {[%clk 0:00:10.3]} 33. Bf1 {[%clk 0:00:34.6]}
33... Bh2+ {[%clk 0:00:02.9]} 34. Qxh2 {[%clk 0:00:19.9]} 34... Qg4+ {[%clk
0:00:03.2]} 35. Qg2 {[%clk 0:00:18.6]} 35... Qxg2+ {[%clk 0:00:03.5]} 36. Kxg2
{[%clk 0:00:19.5]} 36... dxc3 {[%clk 0:00:03.9]} 37. Bxc3 {[%clk 0:00:18.8]}
37... Ra1 {[%clk 0:00:04.8]} 38. Bxb5 {[%clk 0:00:17.7]} 38... Rxa2 {[%clk
0:00:04.8]} 39. Bc4 {[%clk 0:00:18.6]} 39... Ra1 {[%clk 0:00:04.7]} 40. Bd5
{[%clk 0:00:18.1]} 40... Kf8 {[%clk 0:00:03.4]} 41. Kf3 {[%clk 0:00:18.3]} 41...
Ke7 {[%clk 0:00:03.5]} 42. Ke4 {[%clk 0:00:18.4]} 42... f6 {[%clk 0:00:03.9]}
43. f4 {[%clk 0:00:17.9]} 43... Rd1 {[%clk 0:00:04.4]} 44. f5 {[%clk 0:00:17.7]}
44... Rf1 {[%clk 0:00:04.3]} 45. Bb4+ {[%clk 0:00:16.9]} 45... Kd7 {[%clk
0:00:04.1]} 46. Be6+ {[%clk 0:00:16.9]} 46... Kc6 {[%clk 0:00:04.5]} 47. Bc3
{[%clk 0:00:17.8]} 47... Rh1 {[%clk 0:00:04.2]} 48. Bxf6 {[%clk 0:00:17.4]}
48... Re1+ {[%clk 0:00:04.7]} 49. Kf4 {[%clk 0:00:17.1]} 49... Re2 {[%clk
0:00:04.9]} 50. Bc3 {[%clk 0:00:16.7]} 50... a5 {[%clk 0:00:05.5]} 51. Kg5
{[%clk 0:00:16.1]} 51... Kd6 {[%clk 0:00:04.8]} 52. Kf6 {[%clk 0:00:13.8]} 52...
Rg2 {[%clk 0:00:03.4]} 53. Bf7 {[%clk 0:00:12.8]} 53... Kd7 {[%clk 0:00:02.9]}
54. Bg6 {[%clk 0:00:12]} 54... Kd6 {[%clk 0:00:02.1]} 55. Bf7 {[%clk 0:00:10]}
55... Kd7 {[%clk 0:00:02.1]} 56. b3 {[%clk 0:00:10.5]} 56... Kd6 {[%clk
0:00:03]} 57. Bxa5 {[%clk 0:00:10.4]} 57... Kd7 {[%clk 0:00:03.9]} 58. Bb4
{[%clk 0:00:10.8]} 58... Rf2 {[%clk 0:00:04.1]} 59. Be6+ {[%clk 0:00:11.7]}
59... Kd8 {[%clk 0:00:04]} 60. Bc5 {[%clk 0:00:11.9]} 60... Rh2 {[%clk
0:00:04.4]} 61. Be7+ {[%clk 0:00:12.3]} 61... Ke8 {[%clk 0:00:04.1]} 62. Bd6
{[%clk 0:00:11.7]} 62... Rh6+ {[%clk 0:00:03.8]} 63. Ke5 {[%clk 0:00:11]} 63...
Rh1 {[%clk 0:00:04.7]} 64. b4 {[%clk 0:00:11.9]} 64... Re1+ {[%clk 0:00:04.9]}
65. Kf6 {[%clk 0:00:12.2]} 65... Rd1 {[%clk 0:00:05.3]} 66. Bc5 {[%clk
0:00:13.1]} 66... Rb1 {[%clk 0:00:05.2]} 67. Bc4 {[%clk 0:00:12.2]} 67... Rc1
{[%clk 0:00:05.6]} 68. Bb5+ {[%clk 0:00:12.3]} 68... Kd8 {[%clk 0:00:06.2]} 69.
Kf7 {[%clk 0:00:12.5]} 69... Rf1 {[%clk 0:00:06.2]} 70. f6 {[%clk 0:00:12.7]}
70... Rf5 {[%clk 0:00:07.1]} 71. Ke6 {[%clk 0:00:12.4]} 71... Rf4 {[%clk
0:00:05.8]} 72. f7 {[%clk 0:00:12.4]} 1-0

[Event "*** Titled Tuesday Blitz"]
[Site "Chess.com"]
[Date "2020.05.12"]
[Round "4"]
[White "stoleriu"]
[Black "RobertoJBM"]
[Result "1-0"]
[WhiteElo "2566"]
[BlackElo "2578"]
[TimeControl "180+1"]
[EndTime "10:40:19 PDT"]
[Termination "stoleriu won by resignation"]

1. e4 {[%clk 0:03:00.9]} 1... c6 {[%clk 0:02:59.8]} 2. Nf3 {[%clk 0:03:00.5]}
2... d5 {[%clk 0:03:00.7]} 3. exd5 {[%clk 0:03:01.2]} 3... cxd5 {[%clk
0:02:59.7]} 4. Ne5 {[%clk 0:03:01.5]} 4... Nc6 {[%clk 0:02:58.7]} 5. d4 {[%clk
0:03:00.6]} 5... e6 {[%clk 0:02:55.5]} 6. c3 {[%clk 0:02:58.1]} 6... Nge7 {[%clk
0:02:54.3]} 7. Bd3 {[%clk 0:02:54.8]} 7... Nxe5 {[%clk 0:02:53.6]} 8. dxe5
{[%clk 0:02:55.7]} 8... Nc6 {[%clk 0:02:53.9]} 9. Qe2 {[%clk 0:02:55.2]} 9... g6
{[%clk 0:02:41.6]} 10. O-O {[%clk 0:02:53.4]} 10... Bg7 {[%clk 0:02:41.7]} 11.
f4 {[%clk 0:02:52.3]} 11... O-O {[%clk 0:02:40.9]} 12. Kh1 {[%clk 0:02:51.1]}
12... b6 {[%clk 0:02:38.8]} 13. Na3 {[%clk 0:02:47.2]} 13... Qe7 {[%clk
0:02:25.5]} 14. Nc2 {[%clk 0:02:40.9]} 14... Bd7 {[%clk 0:02:17.1]} 15. Be3
{[%clk 0:02:39.9]} 15... f6 {[%clk 0:02:16.7]} 16. exf6 {[%clk 0:02:33.8]} 16...
Bxf6 {[%clk 0:02:14.3]} 17. Rae1 {[%clk 0:02:32.8]} 17... Rae8 {[%clk
0:02:14.3]} 18. Nd4 {[%clk 0:02:24]} 18... Nxd4 {[%clk 0:02:11.1]} 19. Bxd4
{[%clk 0:02:23.4]} 19... Bxd4 {[%clk 0:02:05.1]} 20. cxd4 {[%clk 0:02:24.3]}
20... Qd6 {[%clk 0:02:00.6]} 21. Qe5 {[%clk 0:02:14.6]} 21... Qxe5 {[%clk
0:02:00.8]} 22. Rxe5 {[%clk 0:02:07.5]} 22... Kf7 {[%clk 0:01:57.1]} 23. Rc1
{[%clk 0:02:05.8]} 23... Rc8 {[%clk 0:01:56.6]} 24. Ree1 {[%clk 0:02:05.3]}
24... Ke7 {[%clk 0:01:56.4]} 25. g3 {[%clk 0:02:05]} 25... Kd6 {[%clk
0:01:56.3]} 26. Kg2 {[%clk 0:02:04]} 26... Rxc1 {[%clk 0:01:46.8]} 27. Rxc1
{[%clk 0:02:04.9]} 27... Rf6 {[%clk 0:01:44.5]} 28. h4 {[%clk 0:02:01.1]} 28...
Rf8 {[%clk 0:01:42.2]} 29. Kf3 {[%clk 0:01:59.7]} 29... Rf7 {[%clk 0:01:37.1]}
30. Ke3 {[%clk 0:01:58.3]} 30... Rf8 {[%clk 0:01:37.3]} 31. Rh1 {[%clk
0:01:47.6]} 31... Rg8 {[%clk 0:01:36.5]} 32. g4 {[%clk 0:01:35.9]} 32... h6
{[%clk 0:01:34.3]} 33. g5 {[%clk 0:01:23.4]} 33... h5 {[%clk 0:01:33]} 34. Rc1
{[%clk 0:01:23.3]} 34... Rg7 {[%clk 0:01:33]} 35. b3 {[%clk 0:01:21.7]} 35...
Rg8 {[%clk 0:01:32.6]} 36. a4 {[%clk 0:01:21.9]} 36... Rg7 {[%clk 0:01:32.5]}
37. a5 {[%clk 0:01:20.3]} 37... bxa5 {[%clk 0:01:24.9]} 38. Ra1 {[%clk
0:01:16.2]} 38... a4 {[%clk 0:01:25.3]} 39. bxa4 {[%clk 0:01:17.1]} 39... Be8
{[%clk 0:01:25.6]} 40. a5 {[%clk 0:01:02.3]} 40... Rb7 {[%clk 0:01:23.6]} 41.
Rb1 {[%clk 0:00:47.2]} 41... Rc7 {[%clk 0:01:03.2]} 42. Kd2 {[%clk 0:00:45]}
42... Bf7 {[%clk 0:00:58.6]} 43. Rb8 {[%clk 0:00:42.9]} 43... Kc6 {[%clk
0:00:50]} 44. Rh8 {[%clk 0:00:29]} 44... Kd6 {[%clk 0:00:49]} 45. Rh6 {[%clk
0:00:27.8]} 45... Rb7 {[%clk 0:00:44.5]} 46. Bxg6 {[%clk 0:00:28]} 46... Bxg6
{[%clk 0:00:42.9]} 47. Rxg6 {[%clk 0:00:28.9]} 47... Rb2+ {[%clk 0:00:42.3]} 48.
Kc3 {[%clk 0:00:26.4]} 48... Rf2 {[%clk 0:00:42.3]} 49. Rf6 {[%clk 0:00:25.9]}
49... Ke7 {[%clk 0:00:41.5]} 50. Kb4 {[%clk 0:00:24.9]} 50... Rd2 {[%clk
0:00:35.5]} 51. Kc5 {[%clk 0:00:24.8]} 51... Rc2+ {[%clk 0:00:35.6]} 52. Kb5
{[%clk 0:00:25.1]} 52... Rc4 {[%clk 0:00:35.6]} 53. f5 {[%clk 0:00:14.1]} 53...
exf5 {[%clk 0:00:34.7]} 54. Rxf5 {[%clk 0:00:15]} 54... Rxd4 {[%clk 0:00:35]}
55. Ka6 {[%clk 0:00:15.6]} 55... Ke6 {[%clk 0:00:33.8]} 56. Rf6+ {[%clk
0:00:15.3]} 56... Ke5 {[%clk 0:00:34.3]} 57. Kxa7 {[%clk 0:00:12.8]} 57... Rxh4
{[%clk 0:00:34.6]} 58. a6 {[%clk 0:00:12.4]} 58... Rg4 {[%clk 0:00:34.5]} 59.
Rg6 {[%clk 0:00:12.5]} 59... d4 {[%clk 0:00:34]} 60. Rg8 {[%clk 0:00:11]} 60...
d3 {[%clk 0:00:34.3]} 61. g6 {[%clk 0:00:11.6]} 61... d2 {[%clk 0:00:33.5]} 62.
Rd8 {[%clk 0:00:09.9]} 62... Rd4 {[%clk 0:00:30.3]} 63. Rxd4 {[%clk 0:00:10.1]}
63... Kxd4 {[%clk 0:00:31.2]} 64. g7 {[%clk 0:00:11]} 64... d1=Q {[%clk
0:00:31.7]} 65. g8=Q {[%clk 0:00:11.6]} 65... Qf3 {[%clk 0:00:29.8]} 66. Qg7+
{[%clk 0:00:08.6]} 66... Ke3 {[%clk 0:00:28.3]} 67. Qc3+ {[%clk 0:00:08.1]}
67... Kf4 {[%clk 0:00:28.5]} 68. Qxf3+ {[%clk 0:00:09]} 68... Kxf3 {[%clk
0:00:29.4]} 69. Kb6 {[%clk 0:00:07.9]} 69... h4 {[%clk 0:00:30.3]} 70. a7 {[%clk
0:00:08.6]} 70... h3 {[%clk 0:00:31.1]} 71. a8=Q+ {[%clk 0:00:09.5]} 1-0

[Event "*** Titled Tuesday Blitz"]
[Site "Chess.com"]
[Date "2020.05.12"]
[Round "4"]
[White "kinga2008"]
[Black "BrianEscalante"]
[Result "1-0"]
[WhiteElo "2228"]
[BlackElo "2449"]
[TimeControl "180+1"]
[EndTime "10:40:22 PDT"]
[Termination "kinga2008 won by resignation"]

1. e4 {[%clk 0:02:57.1]} 1... e5 {[%clk 0:01:45.1]} 2. Nf3 {[%clk 0:02:54.5]}
2... Nc6 {[%clk 0:01:45.4]} 3. d4 {[%clk 0:02:54.5]} 3... exd4 {[%clk
0:01:45.1]} 4. Bc4 {[%clk 0:02:54.2]} 4... Bb4+ {[%clk 0:01:41.5]} 5. c3 {[%clk
0:02:53.3]} 5... dxc3 {[%clk 0:01:41.2]} 6. O-O {[%clk 0:02:53.1]} 6... d6
{[%clk 0:01:39.8]} 7. bxc3 {[%clk 0:02:49.9]} 7... Ba5 {[%clk 0:01:39.6]} 8. Ng5
{[%clk 0:02:47.6]} 8... Ne5 {[%clk 0:01:35.1]} 9. Bxf7+ {[%clk 0:02:44.9]} 9...
Nxf7 {[%clk 0:01:34.3]} 10. Nxf7 {[%clk 0:02:45.8]} 10... Kxf7 {[%clk
0:01:34.3]} 11. Qh5+ {[%clk 0:02:45.3]} 11... g6 {[%clk 0:01:34.4]} 12. Qxa5
{[%clk 0:02:45.2]} 12... Nf6 {[%clk 0:01:32.2]} 13. Bg5 {[%clk 0:02:44.1]} 13...
h6 {[%clk 0:01:30.2]} 14. Bh4 {[%clk 0:02:40.2]} 14... g5 {[%clk 0:01:29.5]} 15.
Bg3 {[%clk 0:02:38.6]} 15... Be6 {[%clk 0:01:29.6]} 16. e5 {[%clk 0:02:38.3]}
16... dxe5 {[%clk 0:01:28.5]} 17. Bxe5 {[%clk 0:02:38.7]} 17... b6 {[%clk
0:01:28.6]} 18. Qb4 {[%clk 0:02:34.8]} 18... c5 {[%clk 0:01:27.7]} 19. Qb2
{[%clk 0:02:29.6]} 19... Re8 {[%clk 0:01:22.7]} 20. Nd2 {[%clk 0:02:27.4]} 20...
Bf5 {[%clk 0:01:15.5]} 21. Rfe1 {[%clk 0:02:09.2]} 21... Ng4 {[%clk 0:01:14.2]}
22. Bg3 {[%clk 0:02:04.9]} 22... Qd5 {[%clk 0:01:13.3]} 23. c4 {[%clk
0:01:53.6]} 23... Qd4 {[%clk 0:00:48.9]} 24. Qxd4 {[%clk 0:01:48.1]} 24... cxd4
{[%clk 0:00:49.8]} 25. Nf3 {[%clk 0:01:39.7]} 25... d3 {[%clk 0:00:48.3]} 26.
Rad1 {[%clk 0:01:21.1]} 26... Rxe1+ {[%clk 0:00:47.1]} 27. Nxe1 {[%clk 0:01:09]}
27... Rd8 {[%clk 0:00:44.5]} 28. Nf3 {[%clk 0:00:44.7]} 28... Be4 {[%clk
0:00:38.9]} 29. h3 {[%clk 0:00:42.4]} 29... Bxf3 {[%clk 0:00:38.8]} 30. gxf3
{[%clk 0:00:43.2]} 30... Nf6 {[%clk 0:00:38.2]} 31. Kf1 {[%clk 0:00:41.3]} 31...
Nh5 {[%clk 0:00:16.6]} 32. Ke1 {[%clk 0:00:40]} 32... Re8+ {[%clk 0:00:16.3]}
33. Kd2 {[%clk 0:00:37.5]} 33... Nxg3 {[%clk 0:00:14.5]} 34. fxg3 {[%clk
0:00:33.6]} 34... Re2+ {[%clk 0:00:15.4]} 35. Kxd3 {[%clk 0:00:33.4]} 35... Rxa2
{[%clk 0:00:16.3]} 36. Ke4 {[%clk 0:00:33.9]} 36... Ra4 {[%clk 0:00:06.5]} 37.
Kf5 {[%clk 0:00:23.9]} 37... Ra5+ {[%clk 0:00:06.1]} 38. Kg4 {[%clk 0:00:22.4]}
38... Ra4 {[%clk 0:00:03.9]} 39. Kf5 {[%clk 0:00:20.6]} 39... Ra5+ {[%clk
0:00:03.6]} 40. Kg4 {[%clk 0:00:21]} 40... Ra4 {[%clk 0:00:02]} 41. Kh5 {[%clk
0:00:21.4]} 41... Rxc4 {[%clk 0:00:01.9]} 42. Rd7+ {[%clk 0:00:21.2]} 42... Ke6
{[%clk 0:00:01.9]} 43. Rxa7 {[%clk 0:00:20.9]} 43... Rc3 {[%clk 0:00:02.8]} 44.
Kg4 {[%clk 0:00:14.8]} 44... Rb3 {[%clk 0:00:03.1]} 45. Rh7 {[%clk 0:00:12.2]}
45... b5 {[%clk 0:00:03.5]} 46. Rxh6+ {[%clk 0:00:11.8]} 46... Kf7 {[%clk
0:00:04.4]} 47. Rb6 {[%clk 0:00:09.9]} 47... b4 {[%clk 0:00:04.1]} 48. Rb5
{[%clk 0:00:10.2]} 48... Kf6 {[%clk 0:00:03.7]} 49. Rf5+ {[%clk 0:00:08.9]}
49... Ke6 {[%clk 0:00:02.4]} 50. Rxg5 {[%clk 0:00:08.1]} 50... Rc3 {[%clk
0:00:02.9]} 51. Rb5 {[%clk 0:00:08]} 51... b3 {[%clk 0:00:03.6]} 52. f4 {[%clk
0:00:07.4]} 52... Kd6 {[%clk 0:00:01.9]} 53. h4 {[%clk 0:00:05.1]} 53... Kc6
{[%clk 0:00:02.4]} 54. Rb8 {[%clk 0:00:05.4]} 54... Kc7 {[%clk 0:00:02.7]} 55.
Rb4 {[%clk 0:00:05.1]} 55... Kc6 {[%clk 0:00:02.6]} 56. h5 {[%clk 0:00:05.1]}
56... Re3 {[%clk 0:00:02.8]} 57. h6 {[%clk 0:00:04.2]} 57... Kc5 {[%clk
0:00:03]} 58. h7 {[%clk 0:00:02.4]} 58... Re8 {[%clk 0:00:02.7]} 59. Rxb3 {[%clk
0:00:02.7]} 59... Rh8 {[%clk 0:00:03.3]} 60. Rb7 {[%clk 0:00:03.1]} 60... Kc6
{[%clk 0:00:02.7]} 61. Rg7 {[%clk 0:00:03.4]} 61... Kd6 {[%clk 0:00:03.1]} 62.
Kg5 {[%clk 0:00:03.8]} 62... Ke6 {[%clk 0:00:03.5]} 63. Kg6 {[%clk 0:00:04.2]}
1-0

[Event "*** Titled Tuesday Blitz"]
[Site "Chess.com"]
[Date "2020.05.12"]
[Round "4"]
[White "FM_VS99"]
[Black "SoltaniciR"]
[Result "0-1"]
[WhiteElo "2380"]
[BlackElo "2622"]
[TimeControl "180+1"]
[EndTime "10:40:25 PDT"]
[Termination "SoltaniciR won by checkmate"]

1. c4 {[%clk 0:03:00.9]} 1... c5 {[%clk 0:02:57.2]} 2. g3 {[%clk 0:03:01.3]}
2... Nc6 {[%clk 0:02:55.5]} 3. Bg2 {[%clk 0:03:01.9]} 3... g6 {[%clk 0:02:55.9]}
4. Nf3 {[%clk 0:03:02.2]} 4... Bg7 {[%clk 0:02:56.5]} 5. O-O {[%clk 0:03:02.7]}
5... d6 {[%clk 0:02:56.8]} 6. Nc3 {[%clk 0:03:03.1]} 6... Bf5 {[%clk 0:02:57.1]}
7. a3 {[%clk 0:02:44.2]} 7... Qd7 {[%clk 0:02:56.5]} 8. b4 {[%clk 0:02:42.6]}
8... Bh3 {[%clk 0:02:52.8]} 9. b5 {[%clk 0:02:37.6]} 9... Nd4 {[%clk 0:02:51.2]}
10. e3 {[%clk 0:02:37]} 10... Bxg2 {[%clk 0:02:40.9]} 11. Kxg2 {[%clk
0:02:37.9]} 11... Nxf3 {[%clk 0:02:38.8]} 12. Qxf3 {[%clk 0:02:37.6]} 12... Nh6
{[%clk 0:02:15.7]} 13. Bb2 {[%clk 0:02:35.2]} 13... Nf5 {[%clk 0:02:12.8]} 14.
Rab1 {[%clk 0:02:31.2]} 14... h5 {[%clk 0:02:08.4]} 15. h4 {[%clk 0:02:21]}
15... e6 {[%clk 0:01:57.7]} 16. Ne4 {[%clk 0:02:14.3]} 16... O-O {[%clk
0:01:57]} 17. Rh1 {[%clk 0:01:51.7]} 17... e5 {[%clk 0:01:49]} 18. Ng5 {[%clk
0:01:46.7]} 18... b6 {[%clk 0:01:38.9]} 19. Qd5 {[%clk 0:01:37.4]} 19... Ne7
{[%clk 0:01:37]} 20. Qe4 {[%clk 0:01:34.4]} 20... d5 {[%clk 0:01:31.3]} 21. cxd5
{[%clk 0:01:30.2]} 21... Qxd5 {[%clk 0:01:30.5]} 22. Qxd5 {[%clk 0:01:21.8]}
22... Nxd5 {[%clk 0:01:29.7]} 23. Rhd1 {[%clk 0:01:16.2]} 23... Rfd8 {[%clk
0:01:19.6]} 24. Rbc1 {[%clk 0:01:05.7]} 24... Rac8 {[%clk 0:01:18.7]} 25. Nf3
{[%clk 0:00:59.1]} 25... e4 {[%clk 0:01:12.7]} 26. Ne5 {[%clk 0:00:59]} 26...
Nc7 {[%clk 0:00:55.2]} 27. a4 {[%clk 0:00:48.8]} 27... a6 {[%clk 0:00:55.2]} 28.
bxa6 {[%clk 0:00:40.7]} 28... Nxa6 {[%clk 0:00:55]} 29. Nc4 {[%clk 0:00:37.1]}
29... Bxb2 {[%clk 0:00:54.2]} 30. Nxb2 {[%clk 0:00:38]} 30... Nb4 {[%clk
0:00:42.6]} 31. Nc4 {[%clk 0:00:33.1]} 31... Rc6 {[%clk 0:00:42.4]} 32. f3
{[%clk 0:00:28.6]} 32... f5 {[%clk 0:00:31.9]} 33. fxe4 {[%clk 0:00:28.6]} 33...
fxe4 {[%clk 0:00:32.5]} 34. Rf1 {[%clk 0:00:28.1]} 34... Kg7 {[%clk 0:00:31.8]}
35. Rf4 {[%clk 0:00:27.3]} 35... Nd3 {[%clk 0:00:31.7]} 36. Rb1 {[%clk
0:00:22.8]} 36... Nxf4+ {[%clk 0:00:31.1]} 37. gxf4 {[%clk 0:00:22.8]} 37... Ra8
{[%clk 0:00:21.9]} 38. Nxb6 {[%clk 0:00:20.5]} 38... Ra6 {[%clk 0:00:16.1]} 39.
Nd5 {[%clk 0:00:17.4]} 39... Rxa4 {[%clk 0:00:15.4]} 40. Rb7+ {[%clk 0:00:16.2]}
40... Kf8 {[%clk 0:00:15.6]} 41. Nc3 {[%clk 0:00:15.8]} 41... Rb4 {[%clk
0:00:12.7]} 42. Rd7 {[%clk 0:00:13.9]} 42... Ke8 {[%clk 0:00:11.9]} 43. Rg7
{[%clk 0:00:12.8]} 43... Rd6 {[%clk 0:00:11.4]} 44. Rc7 {[%clk 0:00:10.9]} 44...
Rxd2+ {[%clk 0:00:10.4]} 45. Kg3 {[%clk 0:00:11.5]} 45... Rd3 {[%clk 0:00:10.3]}
46. Rxc5 {[%clk 0:00:11]} 46... Rxe3+ {[%clk 0:00:09.7]} 47. Kf2 {[%clk
0:00:11.5]} 47... Rd3 {[%clk 0:00:09.1]} 48. Ne2 {[%clk 0:00:10.6]} 48... Rb2
{[%clk 0:00:03.4]} 49. Re5+ {[%clk 0:00:10.8]} 49... Kf7 {[%clk 0:00:04]} 50.
Rxe4 {[%clk 0:00:11.7]} 50... Kf6 {[%clk 0:00:03.6]} 51. Ke1 {[%clk 0:00:09.6]}
51... Rdd2 {[%clk 0:00:03.9]} 52. Ng3 {[%clk 0:00:07.6]} 52... Rg2 {[%clk
0:00:03.4]} 53. Ne2 {[%clk 0:00:06.5]} 53... Kf5 {[%clk 0:00:03.6]} 54. Re5+
{[%clk 0:00:06.8]} 54... Kg4 {[%clk 0:00:03]} 55. Rg5+ {[%clk 0:00:07.3]} 55...
Kh3 {[%clk 0:00:03.1]} 56. Ng1+ {[%clk 0:00:07.1]} 56... Kh2 {[%clk 0:00:02.4]}
57. Nf3+ {[%clk 0:00:07.5]} 57... Kh1 {[%clk 0:00:02.8]} 58. Rxg2 {[%clk
0:00:03.1]} 58... Kxg2 {[%clk 0:00:03.7]} 59. Ne5 {[%clk 0:00:04]} 59... Kh3
{[%clk 0:00:03.2]} 60. Nxg6 {[%clk 0:00:04.4]} 60... Kg4 {[%clk 0:00:03.8]} 61.
Kd1 {[%clk 0:00:03.4]} 61... Rb6 {[%clk 0:00:03.6]} 62. Ne5+ {[%clk 0:00:02.9]}
62... Kxf4 {[%clk 0:00:02.6]} 63. Nd3+ {[%clk 0:00:03.8]} 63... Kg3 {[%clk
0:00:01.4]} 64. Ke2 {[%clk 0:00:04.7]} 64... Kxh4 {[%clk 0:00:01.8]} 65. Kf2
{[%clk 0:00:05]} 65... Rf6+ {[%clk 0:00:02]} 66. Kg2 {[%clk 0:00:04.9]} 66...
Kg5 {[%clk 0:00:02.9]} 67. Ne5 {[%clk 0:00:05.3]} 67... h4 {[%clk 0:00:03.8]}
68. Nf3+ {[%clk 0:00:05.8]} 68... Kh5 {[%clk 0:00:04.1]} 69. Nh2 {[%clk
0:00:06.5]} 69... Rg6+ {[%clk 0:00:04]} 70. Kh3 {[%clk 0:00:07.4]} 70... Rg3#
{[%clk 0:00:04.3]} 0-1